[Event "*** Titled Tuesday Blitz"]
[Site "Chess.com"]
[Date "2020.01.07"]
[Round "2"]
[White "chess3054"]
[Black "Bagirova"]
[Result "1-0"]
[WhiteElo "2420"]
[BlackElo "2114"]
[TimeControl "180+2"]
[EndTime "13:25:47 PST"]
[Termination "chess3054 won on time"]

1. e4 {[%clk 0:03:01.9]} 1... c5 {[%clk 0:03:00.4]} 2. Nf3 {[%clk 0:02:50.5]}
2... d6 {[%clk 0:02:55.3]} 3. d4 {[%clk 0:02:50.7]} 3... cxd4 {[%clk 0:02:55.9]}
4. Nxd4 {[%clk 0:02:52.6]} 4... Nf6 {[%clk 0:02:56.8]} 5. Nc3 {[%clk 0:02:53.9]}
5... a6 {[%clk 0:02:57.2]} 6. g3 {[%clk 0:02:54.3]} 6... g6 {[%clk 0:02:55.1]}
7. Bg2 {[%clk 0:02:53.1]} 7... Bg7 {[%clk 0:02:57]} 8. O-O {[%clk 0:02:54.1]}
8... Bf8 {[%clk 0:02:58.9]} 9. h3 {[%clk 0:02:51.9]} 9... Bg7 {[%clk 0:03:00.8]}
10. Be3 {[%clk 0:02:53.2]} 10... O-O {[%clk 0:03:01.2]} 11. Qd2 {[%clk
0:02:54.2]} 11... Qc7 {[%clk 0:03:00.2]} 12. Bh6 {[%clk 0:02:52.8]} 12... Nc6
{[%clk 0:02:56.5]} 13. Bxg7 {[%clk 0:02:53.1]} 13... Kxg7 {[%clk 0:02:57.8]} 14.
Rad1 {[%clk 0:02:51.4]} 14... Bd7 {[%clk 0:02:52.9]} 15. Kh2 {[%clk 0:02:50.5]}
15... Rac8 {[%clk 0:02:45.2]} 16. f4 {[%clk 0:02:49.2]} 16... b5 {[%clk
0:02:28.9]} 17. Rf2 {[%clk 0:02:37.3]} 17... b4 {[%clk 0:02:28.8]} 18. Nd5
{[%clk 0:02:37.4]} 18... Nxd5 {[%clk 0:02:27.9]} 19. exd5 {[%clk 0:02:39.3]}
19... Nxd4 {[%clk 0:02:17.6]} 20. Qxd4+ {[%clk 0:02:41.2]} 20... f6 {[%clk
0:02:19.5]} 21. Qxb4 {[%clk 0:02:39]} 21... Rb8 {[%clk 0:02:08.6]} 22. Qd4
{[%clk 0:02:31.8]} 22... Qa5 {[%clk 0:01:44.6]} 23. b3 {[%clk 0:02:29.3]} 23...
Rb4 {[%clk 0:01:39.1]} 24. c4 {[%clk 0:02:28.9]} 24... Rb7 {[%clk 0:01:32.3]}
25. Re2 {[%clk 0:02:25.6]} 25... Bc8 {[%clk 0:01:20]} 26. Rde1 {[%clk
0:02:25.7]} 26... Rf7 {[%clk 0:01:15.8]} 27. h4 {[%clk 0:02:20.1]} 27... Bg4
{[%clk 0:01:15.7]} 28. Re3 {[%clk 0:02:19]} 28... Qxa2 {[%clk 0:01:12.5]} 29.
Qc3 {[%clk 0:01:47.5]} 29... Qa3 {[%clk 0:01:01.4]} 30. Ra1 {[%clk 0:01:42.5]}
30... Qc5 {[%clk 0:01:02]} 31. Rxa6 {[%clk 0:01:42.3]} 31... h5 {[%clk
0:00:56.1]} 32. Ra5 {[%clk 0:01:28.2]} 32... Qc8 {[%clk 0:00:46.3]} 33. b4
{[%clk 0:01:27.5]} 33... Rc7 {[%clk 0:00:42.9]} 34. c5 {[%clk 0:01:27.6]} 34...
g5 {[%clk 0:00:23.4]} 35. fxg5 {[%clk 0:01:23.2]} 35... Kg8 {[%clk 0:00:16.2]}
36. gxf6 {[%clk 0:01:20.1]} 36... Rxf6 {[%clk 0:00:16.2]} 37. Re2 {[%clk
0:01:17.9]} 37... Qf5 {[%clk 0:00:16]} 38. Ra8+ {[%clk 0:01:06.5]} 38... Kh7
{[%clk 0:00:16]} 39. Rd2 {[%clk 0:00:59]} 39... Kh6 {[%clk 0:00:15.4]} 40. Qe3+
{[%clk 0:00:59.5]} 40... Kg7 {[%clk 0:00:16.7]} 41. c6 {[%clk 0:00:59.8]} 41...
Bf3 {[%clk 0:00:12.5]} 42. Rf2 {[%clk 0:00:57]} 42... Qe4 {[%clk 0:00:11.4]} 43.
Rxf3 {[%clk 0:00:53.3]} 43... Rxf3 {[%clk 0:00:07.8]} 44. Qxe4 {[%clk
0:00:53.9]} 1-0

[Event "*** Titled Tuesday Blitz"]
[Site "Chess.com"]
[Date "2020.01.07"]
[Round "2"]
[White "Mr_Sinigami"]
[Black "Dynamikus"]
[Result "1-0"]
[WhiteElo "2583"]
[BlackElo "2550"]
[TimeControl "180+2"]
[EndTime "13:25:49 PST"]
[Termination "Mr_Sinigami won by resignation"]

1. d4 {[%clk 0:03:01.9]} 1... Nf6 {[%clk 0:02:59.5]} 2. Nf3 {[%clk 0:03:02.7]}
2... e6 {[%clk 0:03:01.4]} 3. Bf4 {[%clk 0:03:01.7]} 3... d5 {[%clk 0:03:02.1]}
4. e3 {[%clk 0:03:02.2]} 4... Bd6 {[%clk 0:03:04]} 5. Bg3 {[%clk 0:03:02.8]}
5... O-O {[%clk 0:03:04]} 6. Nbd2 {[%clk 0:03:03.8]} 6... c5 {[%clk 0:03:03.9]}
7. c3 {[%clk 0:03:04.9]} 7... Qc7 {[%clk 0:03:05.1]} 8. Ne5 {[%clk 0:02:53]}
8... Nc6 {[%clk 0:02:59.2]} 9. f4 {[%clk 0:02:52.6]} 9... Ne7 {[%clk 0:02:59.5]}
10. Bd3 {[%clk 0:02:52.4]} 10... Nf5 {[%clk 0:02:57.9]} 11. Bf2 {[%clk
0:02:51.1]} 11... Be7 {[%clk 0:02:55.8]} 12. g4 {[%clk 0:02:35.7]} 12... Nd6
{[%clk 0:02:54.8]} 13. g5 {[%clk 0:02:36.2]} 13... Nfe4 {[%clk 0:02:54.9]} 14.
Nxe4 {[%clk 0:02:21.4]} 14... Nxe4 {[%clk 0:02:53.1]} 15. Bxe4 {[%clk
0:02:14.7]} 15... dxe4 {[%clk 0:02:55]} 16. Qc2 {[%clk 0:02:15.3]} 16... b6
{[%clk 0:02:49.9]} 17. O-O-O {[%clk 0:02:09.1]} 17... Bb7 {[%clk 0:02:32.4]} 18.
h4 {[%clk 0:02:09.3]} 18... Rad8 {[%clk 0:02:14]} 19. Rhg1 {[%clk 0:02:05.4]}
19... cxd4 {[%clk 0:02:06.4]} 20. exd4 {[%clk 0:02:05.8]} 20... b5 {[%clk
0:02:03.5]} 21. h5 {[%clk 0:02:03.2]} 21... b4 {[%clk 0:02:04.1]} 22. c4 {[%clk
0:02:03]} 22... a5 {[%clk 0:01:56.3]} 23. Kb1 {[%clk 0:01:58.7]} 23... Bd6
{[%clk 0:01:41.6]} 24. Be3 {[%clk 0:01:51.2]} 24... Rc8 {[%clk 0:01:39.9]} 25.
Rc1 {[%clk 0:01:41.5]} 25... Qe7 {[%clk 0:01:25.8]} 26. g6 {[%clk 0:01:31.4]}
26... fxg6 {[%clk 0:01:21.1]} 27. hxg6 {[%clk 0:01:30.7]} 27... h6 {[%clk
0:01:20.3]} 28. Nf7 {[%clk 0:01:20.4]} 28... Bc7 {[%clk 0:01:06.4]} 29. Qf2
{[%clk 0:01:08.8]} 29... Qf6 {[%clk 0:00:59.8]} 30. Rcf1 {[%clk 0:01:04.3]}
30... Bb8 {[%clk 0:00:57.1]} 31. f5 {[%clk 0:00:59.5]} 31... exf5 {[%clk
0:00:50.5]} 32. b3 {[%clk 0:00:40.9]} 32... f4 {[%clk 0:00:40.3]} 33. Bxf4
{[%clk 0:00:41.8]} 33... Bxf4 {[%clk 0:00:41.7]} 34. Qxf4 {[%clk 0:00:42.4]}
34... Qxd4 {[%clk 0:00:36.5]} 35. Rd1 {[%clk 0:00:42.7]} 35... Qf6 {[%clk
0:00:20]} 36. Qxf6 {[%clk 0:00:35.9]} 36... gxf6 {[%clk 0:00:21.9]} 37. Nxh6+
{[%clk 0:00:37.4]} 37... Kg7 {[%clk 0:00:22.6]} 38. Nf5+ {[%clk 0:00:38.2]}
38... Kg8 {[%clk 0:00:23.9]} 39. Rd7 {[%clk 0:00:35.8]} 39... Bc6 {[%clk
0:00:18.5]} 40. Nh6+ {[%clk 0:00:34.9]} 1-0

[Event "*** Titled Tuesday Blitz"]
[Site "Chess.com"]
[Date "2020.01.07"]
[Round "2"]
[White "ChEsper99"]
[Black "2nd_life"]
[Result "0-1"]
[WhiteElo "2001"]
[BlackElo "2514"]
[TimeControl "180+2"]
[EndTime "13:25:50 PST"]
[Termination "2nd_life won by resignation"]

1. e4 {[%clk 0:03:01.9]} 1... e5 {[%clk 0:03:00.1]} 2. Nf3 {[%clk 0:03:02.6]}
2... Nc6 {[%clk 0:03:01]} 3. d4 {[%clk 0:03:03.3]} 3... exd4 {[%clk 0:03:01.8]}
4. Nxd4 {[%clk 0:03:05.2]} 4... Bb4+ {[%clk 0:03:01.7]} 5. c3 {[%clk 0:03:03]}
5... Be7 {[%clk 0:03:02.2]} 6. f4 {[%clk 0:02:58.2]} 6... d5 {[%clk 0:02:32.3]}
7. e5 {[%clk 0:02:45.9]} 7... Bc5 {[%clk 0:02:25.7]} 8. Be3 {[%clk 0:02:40.7]}
8... Bb6 {[%clk 0:02:21.1]} 9. Bd3 {[%clk 0:02:23.7]} 9... Nh6 {[%clk
0:02:17.2]} 10. Qc2 {[%clk 0:02:10.6]} 10... Ng4 {[%clk 0:02:07.1]} 11. Bg1
{[%clk 0:02:07.2]} 11... h5 {[%clk 0:01:42.9]} 12. Nd2 {[%clk 0:02:04.4]} 12...
g5 {[%clk 0:01:15.1]} 13. O-O-O {[%clk 0:01:33.8]} 13... gxf4 {[%clk 0:01:15.1]}
14. N2f3 {[%clk 0:01:17]} 14... Bxd4 {[%clk 0:00:50.6]} 15. cxd4 {[%clk
0:01:12.9]} 15... Be6 {[%clk 0:00:43.9]} 16. h3 {[%clk 0:00:52.4]} 16... Ne3
{[%clk 0:00:37.6]} 17. Bxe3 {[%clk 0:00:53]} 17... fxe3 {[%clk 0:00:39.5]} 18.
Rde1 {[%clk 0:00:42.5]} 18... Qd7 {[%clk 0:00:29.9]} 19. a3 {[%clk 0:00:39.3]}
19... Na5 {[%clk 0:00:23.4]} 20. Rxe3 {[%clk 0:00:35]} 20... Nc4 {[%clk
0:00:23.8]} 21. Bxc4 {[%clk 0:00:33.8]} 21... dxc4 {[%clk 0:00:25.7]} 22. Rd1
{[%clk 0:00:28.2]} 22... Qd5 {[%clk 0:00:26]} 23. Ng5 {[%clk 0:00:24]} 23...
O-O-O {[%clk 0:00:26.4]} 24. Nxe6 {[%clk 0:00:20.3]} 24... fxe6 {[%clk
0:00:27.3]} 25. Rc3 {[%clk 0:00:14.1]} 25... Rhg8 {[%clk 0:00:26.7]} 26. Rd2
{[%clk 0:00:15.4]} 26... b5 {[%clk 0:00:22.7]} 27. a4 {[%clk 0:00:14.1]} 27...
a6 {[%clk 0:00:21.9]} 28. axb5 {[%clk 0:00:14.8]} 28... axb5 {[%clk 0:00:23.8]}
29. b3 {[%clk 0:00:10.9]} 29... cxb3 {[%clk 0:00:24.8]} 30. Qxb3 {[%clk
0:00:10.4]} 30... Rxg2 {[%clk 0:00:19.3]} 31. Qxd5 {[%clk 0:00:07.6]} 31... Rg1+
{[%clk 0:00:19.9]} 32. Kc2 {[%clk 0:00:06.4]} 32... Rxd5 {[%clk 0:00:20.2]} 33.
Rc6 {[%clk 0:00:05.8]} 33... Kd7 {[%clk 0:00:20.5]} 34. Rc5 {[%clk 0:00:04.3]}
34... Rxc5+ {[%clk 0:00:20.4]} 35. dxc5+ {[%clk 0:00:06.2]} 35... Kc6 {[%clk
0:00:21.9]} 36. Rd8 {[%clk 0:00:04]} 36... Rg5 {[%clk 0:00:22.7]} 37. Re8 {[%clk
0:00:03.3]} 37... Rxe5 {[%clk 0:00:23.8]} 0-1

[Event "*** Titled Tuesday Blitz"]
[Site "Chess.com"]
[Date "2020.01.07"]
[Round "2"]
[White "Sergey85Rodchenkov"]
[Black "Rikikits"]
[Result "0-1"]
[WhiteElo "2470"]
[BlackElo "2713"]
[TimeControl "180+2"]
[EndTime "13:25:53 PST"]
[Termination "Rikikits won by resignation"]

1. e4 {[%clk 0:03:01.9]} 1... g6 {[%clk 0:03:01.9]} 2. d4 {[%clk 0:03:01.8]}
2... Bg7 {[%clk 0:03:00.1]} 3. Nc3 {[%clk 0:03:03.1]} 3... d6 {[%clk 0:03:01.6]}
4. Be3 {[%clk 0:03:03.7]} 4... a6 {[%clk 0:03:03.2]} 5. h4 {[%clk 0:03:02.2]}
5... h5 {[%clk 0:03:03.1]} 6. Nh3 {[%clk 0:03:01]} 6... Bxh3 {[%clk 0:03:03.7]}
7. Rxh3 {[%clk 0:03:01.4]} 7... Nd7 {[%clk 0:03:05.6]} 8. Qd2 {[%clk 0:03:00.5]}
8... Rc8 {[%clk 0:03:04.2]} 9. f3 {[%clk 0:02:47.5]} 9... c5 {[%clk 0:03:04.6]}
10. d5 {[%clk 0:02:47.4]} 10... Qa5 {[%clk 0:02:56.4]} 11. Nd1 {[%clk
0:02:42.8]} 11... Qxd2+ {[%clk 0:02:53.1]} 12. Bxd2 {[%clk 0:02:42.5]} 12...
Ngf6 {[%clk 0:02:50]} 13. a4 {[%clk 0:02:39.5]} 13... O-O {[%clk 0:02:50]} 14.
Ne3 {[%clk 0:02:36.5]} 14... Bh6 {[%clk 0:02:45.6]} 15. Nc4 {[%clk 0:02:34.2]}
15... Bxd2+ {[%clk 0:02:40.2]} 16. Kxd2 {[%clk 0:02:36.1]} 16... Rb8 {[%clk
0:02:39.3]} 17. Be2 {[%clk 0:02:25.2]} 17... Kg7 {[%clk 0:02:33.7]} 18. Rhh1
{[%clk 0:02:24.2]} 18... Rfd8 {[%clk 0:02:31.9]} 19. Rhd1 {[%clk 0:02:23.6]}
19... Ne5 {[%clk 0:02:20.2]} 20. Ne3 {[%clk 0:02:10.5]} 20... e6 {[%clk
0:02:10.2]} 21. Ke1 {[%clk 0:02:01.5]} 21... exd5 {[%clk 0:02:03.3]} 22. Nxd5
{[%clk 0:02:01.6]} 22... Nc6 {[%clk 0:02:04.5]} 23. c3 {[%clk 0:01:56]} 23...
Nxd5 {[%clk 0:02:00.6]} 24. Rxd5 {[%clk 0:01:55.4]} 24... Ne7 {[%clk 0:02:02]}
25. Rd2 {[%clk 0:01:55.3]} 25... Rd7 {[%clk 0:02:02.4]} 26. Rad1 {[%clk
0:01:54.9]} 26... Rbd8 {[%clk 0:02:03.9]} 27. Bc4 {[%clk 0:01:55.3]} 27... Nc6
{[%clk 0:01:59.1]} 28. Kf2 {[%clk 0:01:47.6]} 28... Kf8 {[%clk 0:01:58.9]} 29.
Bd5 {[%clk 0:01:43.8]} 29... Ke7 {[%clk 0:01:58.9]} 30. f4 {[%clk 0:01:37.5]}
30... f6 {[%clk 0:01:57.7]} 31. Kf3 {[%clk 0:01:37.1]} 31... Rh8 {[%clk
0:01:57.8]} 32. g3 {[%clk 0:01:27.1]} 32... Rhd8 {[%clk 0:01:56.7]} 33. Rd3
{[%clk 0:01:25.9]} 33... Rb8 {[%clk 0:01:56.9]} 34. R3d2 {[%clk 0:01:25.5]}
34... Nd8 {[%clk 0:01:57.8]} 35. Bc4 {[%clk 0:01:22.4]} 35... b5 {[%clk
0:01:56]} 36. axb5 {[%clk 0:01:23.2]} 36... axb5 {[%clk 0:01:57.9]} 37. Bd5
{[%clk 0:01:24.7]} 37... b4 {[%clk 0:01:58]} 38. Ra1 {[%clk 0:01:20.5]} 38...
bxc3 {[%clk 0:01:53.8]} 39. bxc3 {[%clk 0:01:21.6]} 39... Ne6 {[%clk 0:01:55.7]}
40. Rad1 {[%clk 0:00:59.2]} 40... Rb6 {[%clk 0:01:55.9]} 41. Bxe6 {[%clk
0:00:51.8]} 41... Kxe6 {[%clk 0:01:57.8]} 42. Rd5 {[%clk 0:00:52.4]} 42... Rb3
{[%clk 0:01:53]} 43. R1d3 {[%clk 0:00:52.9]} 43... c4 {[%clk 0:01:53.2]} 44. Re3
{[%clk 0:00:52.7]} 44... Rc7 {[%clk 0:01:53.3]} 45. Rd4 {[%clk 0:00:50.8]} 45...
Rc5 {[%clk 0:01:52.4]} 46. f5+ {[%clk 0:00:43.2]} 46... gxf5 {[%clk 0:01:50]}
47. exf5+ {[%clk 0:00:44.2]} 47... Kxf5 {[%clk 0:01:51.9]} 48. Rxd6 {[%clk
0:00:44.1]} 48... Re5 {[%clk 0:01:50.8]} 49. Rc6 {[%clk 0:00:27.3]} 49... Rxe3+
{[%clk 0:01:50.6]} 50. Kxe3 {[%clk 0:00:28.7]} 50... Rxc3+ {[%clk 0:01:52.2]}
51. Kd4 {[%clk 0:00:30]} 51... Rxg3 {[%clk 0:01:53.6]} 52. Rc5+ {[%clk 0:00:29]}
52... Kg6 {[%clk 0:01:54.5]} 53. Kxc4 {[%clk 0:00:27.7]} 53... Rg4+ {[%clk
0:01:56.4]} 54. Kd3 {[%clk 0:00:29]} 54... Rxh4 {[%clk 0:01:57.8]} 55. Ke2
{[%clk 0:00:30.7]} 55... Rf4 {[%clk 0:01:58.6]} 56. Ke3 {[%clk 0:00:31.6]} 56...
Rf5 {[%clk 0:01:58.2]} 57. Rc8 {[%clk 0:00:32.7]} 57... h4 {[%clk 0:01:55.2]}
58. Rg8+ {[%clk 0:00:33.2]} 58... Kh5 {[%clk 0:01:56.2]} 59. Ke4 {[%clk
0:00:31.9]} 59... Rf1 {[%clk 0:01:55.8]} 60. Rh8+ {[%clk 0:00:33]} 60... Kg4
{[%clk 0:01:56.7]} 61. Rg8+ {[%clk 0:00:34.2]} 61... Kh3 {[%clk 0:01:58.2]} 62.
Rh8 {[%clk 0:00:35.1]} 62... Kg3 {[%clk 0:01:58.7]} 63. Rg8+ {[%clk 0:00:35.7]}
63... Kh2 {[%clk 0:02:00.1]} 64. Ke3 {[%clk 0:00:34.9]} 64... h3 {[%clk
0:02:01]} 65. Rh8 {[%clk 0:00:35.3]} 65... Rf5 {[%clk 0:01:58.7]} 66. Rh4 {[%clk
0:00:34.5]} 66... Kg3 {[%clk 0:01:57.9]} 0-1

[Event "*** Titled Tuesday Blitz"]
[Site "Chess.com"]
[Date "2020.01.07"]
[Round "2"]
[White "GadimbayliA"]
[Black "chesstatour"]
[Result "1-0"]
[WhiteElo "2960"]
[BlackElo "1979"]
[TimeControl "180+2"]
[EndTime "13:25:53 PST"]
[Termination "GadimbayliA won by resignation"]

1. e4 {[%clk 0:03:01.9]} 1... c6 {[%clk 0:03:00.6]} 2. e5 {[%clk 0:03:00.6]}
2... d5 {[%clk 0:03:01.4]} 3. Nf3 {[%clk 0:03:00.2]} 3... Bg4 {[%clk 0:03:01.3]}
4. h3 {[%clk 0:03:00.7]} 4... Bxf3 {[%clk 0:02:55.2]} 5. Qxf3 {[%clk 0:03:02.6]}
5... e6 {[%clk 0:02:56.8]} 6. d4 {[%clk 0:03:03.8]} 6... c5 {[%clk 0:02:56.8]}
7. c3 {[%clk 0:03:04.8]} 7... cxd4 {[%clk 0:02:54.8]} 8. cxd4 {[%clk 0:03:04.3]}
8... Ne7 {[%clk 0:02:56.2]} 9. Nc3 {[%clk 0:03:04.9]} 9... Nbc6 {[%clk
0:02:55.8]} 10. Be3 {[%clk 0:03:03.1]} 10... Nf5 {[%clk 0:02:56.3]} 11. Rd1
{[%clk 0:02:40.4]} 11... Bb4 {[%clk 0:02:39.8]} 12. Bd3 {[%clk 0:02:31.9]} 12...
Nxe3 {[%clk 0:01:58.7]} 13. fxe3 {[%clk 0:02:33.8]} 13... Qg5 {[%clk 0:01:35.3]}
14. O-O {[%clk 0:02:32.6]} 14... O-O {[%clk 0:01:35.4]} 15. Ne2 {[%clk
0:02:28.8]} 15... f6 {[%clk 0:01:26.3]} 16. Qf4 {[%clk 0:01:58.7]} 16... Qxf4
{[%clk 0:01:23.1]} 17. Nxf4 {[%clk 0:02:00.6]} 17... fxe5 {[%clk 0:01:18.4]} 18.
Nxe6 {[%clk 0:01:56.2]} 18... Rxf1+ {[%clk 0:01:00.3]} 19. Bxf1 {[%clk
0:01:58.1]} 19... exd4 {[%clk 0:00:38.6]} 20. exd4 {[%clk 0:02:00]} 20... Rc8
{[%clk 0:00:07.9]} 21. g4 {[%clk 0:01:34.5]} 21... Kf7 {[%clk 0:00:08]} 22. Nf4
{[%clk 0:01:35.4]} 22... Nxd4 {[%clk 0:00:07.4]} 23. Kh1 {[%clk 0:01:15.9]}
23... Ne6 {[%clk 0:00:07]} 24. Nxd5 {[%clk 0:01:11.3]} 24... Bd6 {[%clk
0:00:07]} 25. Bg2 {[%clk 0:01:11]} 25... Rc2 {[%clk 0:00:06.5]} 26. Ne3 {[%clk
0:01:10.2]} 26... Re2 {[%clk 0:00:04.8]} 27. Rxd6 {[%clk 0:01:11]} 27... Rxe3
{[%clk 0:00:05.1]} 28. Rd7+ {[%clk 0:01:12.6]} 28... Kf6 {[%clk 0:00:05.4]} 29.
Rxb7 {[%clk 0:01:08.2]} 29... Nf4 {[%clk 0:00:04.7]} 30. Rb5 {[%clk 0:01:03.6]}
30... g5 {[%clk 0:00:04.3]} 31. Bf1 {[%clk 0:00:56.2]} 31... Re1 {[%clk
0:00:03.7]} 32. Kg1 {[%clk 0:00:57.1]} 32... Rc1 {[%clk 0:00:03.2]} 33. h4
{[%clk 0:00:55.6]} 33... h6 {[%clk 0:00:02.7]} 34. hxg5+ {[%clk 0:00:54.4]}
34... hxg5 {[%clk 0:00:04.6]} 35. Kf2 {[%clk 0:00:56.3]} 35... Rb1 {[%clk
0:00:05]} 36. Bc4 {[%clk 0:00:54.3]} 36... Ra1 {[%clk 0:00:03.8]} 37. Ra5 {[%clk
0:00:52.2]} 37... Rb1 {[%clk 0:00:04.1]} 38. b3 {[%clk 0:00:46.6]} 38... Rb2+
{[%clk 0:00:04.9]} 39. Kf3 {[%clk 0:00:47.6]} 39... Rb1 {[%clk 0:00:04.4]} 40.
Rxa7 {[%clk 0:00:46.6]} 40... Rh1 {[%clk 0:00:05.2]} 41. Ra6+ {[%clk 0:00:46.5]}
41... Ke5 {[%clk 0:00:05.6]} 42. Ra5+ {[%clk 0:00:47.6]} 42... Kd4 {[%clk
0:00:06.7]} 43. Rxg5 {[%clk 0:00:45.2]} 43... Rh3+ {[%clk 0:00:04.8]} 1-0

[Event "*** Titled Tuesday Blitz"]
[Site "Chess.com"]
[Date "2020.01.07"]
[Round "2"]
[White "Er_is_geen_hoop_meer"]
[Black "AdrianPetrisor1992"]
[Result "1-0"]
[WhiteElo "2384"]
[BlackElo "2642"]
[TimeControl "180+2"]
[EndTime "13:25:54 PST"]
[Termination "Er_is_geen_hoop_meer won by resignation"]

1. b4 {[%clk 0:03:01.9]} 1... c6 {[%clk 0:02:58.2]} 2. e3 {[%clk 0:03:02.9]}
2... Qb6 {[%clk 0:02:58.7]} 3. a3 {[%clk 0:03:03.6]} 3... Nf6 {[%clk 0:02:56]}
4. Bb2 {[%clk 0:03:04.6]} 4... a5 {[%clk 0:02:56]} 5. b5 {[%clk 0:03:05.9]} 5...
cxb5 {[%clk 0:02:56.2]} 6. Nc3 {[%clk 0:03:07.4]} 6... b4 {[%clk 0:02:50.4]} 7.
axb4 {[%clk 0:03:09.3]} 7... Nc6 {[%clk 0:02:45.1]} 8. b5 {[%clk 0:03:07.4]}
8... Nb4 {[%clk 0:02:37.2]} 9. Na4 {[%clk 0:03:06.3]} 9... Qc7 {[%clk
0:02:14.9]} 10. c3 {[%clk 0:03:06.6]} 10... Nbd5 {[%clk 0:02:15.5]} 11. c4
{[%clk 0:03:07.8]} 11... Nb4 {[%clk 0:02:15.6]} 12. Bd4 {[%clk 0:03:08.5]} 12...
d6 {[%clk 0:01:56.5]} 13. Nb6 {[%clk 0:03:08.7]} 13... Rb8 {[%clk 0:01:51.9]}
14. Rxa5 {[%clk 0:03:04.6]} 14... e5 {[%clk 0:01:51.9]} 15. Bc3 {[%clk
0:03:06.1]} 15... Qxb6 {[%clk 0:01:40.8]} 16. Bxb4 {[%clk 0:03:01.6]} 16... Be6
{[%clk 0:01:31.9]} 17. Qa4 {[%clk 0:03:01.4]} 17... Be7 {[%clk 0:01:26.4]} 18.
Nf3 {[%clk 0:02:24]} 18... O-O {[%clk 0:01:27]} 19. Nxe5 {[%clk 0:02:25.4]}
19... Rfc8 {[%clk 0:01:13.8]} 20. Be2 {[%clk 0:02:21.9]} 20... Bd8 {[%clk
0:01:11.5]} 21. Nf3 {[%clk 0:02:05.2]} 21... Bxc4 {[%clk 0:01:10.3]} 22. d3
{[%clk 0:02:05.4]} 22... Bxd3 {[%clk 0:01:03]} 23. Bxd3 {[%clk 0:01:59.9]} 23...
Rc1+ {[%clk 0:01:03.8]} 24. Ke2 {[%clk 0:02:01.1]} 24... Rxh1 {[%clk 0:01:05.2]}
25. Nd2 {[%clk 0:01:49.5]} 25... d5 {[%clk 0:00:56.1]} 26. Ra8 {[%clk
0:01:50.1]} 26... Rxa8 {[%clk 0:00:54.7]} 27. Qxa8 {[%clk 0:01:52]} 27... g6
{[%clk 0:00:43.9]} 28. Nb3 {[%clk 0:01:48.8]} 28... Qc7 {[%clk 0:00:35.2]} 29.
Kf3 {[%clk 0:01:04.4]} 29... Kg7 {[%clk 0:00:30.8]} 30. h3 {[%clk 0:00:54]}
30... Ne4 {[%clk 0:00:29.1]} 31. Bxe4 {[%clk 0:00:54.4]} 31... dxe4+ {[%clk
0:00:30.9]} 32. Kxe4 {[%clk 0:00:55.8]} 32... Qc2+ {[%clk 0:00:31.4]} 33. Kf3
{[%clk 0:00:49.1]} 33... Qd1+ {[%clk 0:00:31.6]} 34. Kg3 {[%clk 0:00:43.7]}
34... Bc7+ {[%clk 0:00:31.8]} 35. f4 {[%clk 0:00:44.1]} 35... Bd6 {[%clk
0:00:20.3]} 36. Bc3+ {[%clk 0:00:39.1]} 36... Kh6 {[%clk 0:00:19.6]} 37. Qh8
{[%clk 0:00:32.4]} 37... Bxf4+ {[%clk 0:00:17]} 38. Kxf4 {[%clk 0:00:33.5]}
38... Rf1+ {[%clk 0:00:15]} 39. Kg3 {[%clk 0:00:34.8]} 39... Qd6+ {[%clk
0:00:15.7]} 40. Be5 {[%clk 0:00:35.3]} 40... Qe6 {[%clk 0:00:08.7]} 41. Nd4
{[%clk 0:00:33.5]} 41... Qa2 {[%clk 0:00:03.5]} 42. Qg7+ {[%clk 0:00:33.8]}
42... Kg5 {[%clk 0:00:05]} 43. h4+ {[%clk 0:00:34.9]} 1-0

[Event "*** Titled Tuesday Blitz"]
[Site "Chess.com"]
[Date "2020.01.07"]
[Round "2"]
[White "Region_07"]
[Black "Ariadna_Atreides"]
[Result "1-0"]
[WhiteElo "2380"]
[BlackElo "2058"]
[TimeControl "180+2"]
[EndTime "13:25:54 PST"]
[Termination "Region_07 won by checkmate"]

1. d4 {[%clk 0:03:01.6]} 1... e6 {[%clk 0:02:40]} 2. Nf3 {[%clk 0:03:01.1]} 2...
c5 {[%clk 0:02:36.8]} 3. c4 {[%clk 0:02:59.6]} 3... cxd4 {[%clk 0:02:36.1]} 4.
Nxd4 {[%clk 0:03:00.3]} 4... Nf6 {[%clk 0:02:35.3]} 5. Nc3 {[%clk 0:03:00.9]}
5... Nc6 {[%clk 0:02:34.2]} 6. e3 {[%clk 0:02:50.1]} 6... Bb4 {[%clk 0:02:21.8]}
7. Be2 {[%clk 0:02:45.2]} 7... O-O {[%clk 0:02:21.2]} 8. O-O {[%clk 0:02:44.8]}
8... d5 {[%clk 0:02:18.6]} 9. cxd5 {[%clk 0:02:43.9]} 9... Nxd5 {[%clk
0:02:17.1]} 10. Nxd5 {[%clk 0:02:43.1]} 10... exd5 {[%clk 0:02:08.3]} 11. a3
{[%clk 0:02:39.6]} 11... Bc5 {[%clk 0:02:07]} 12. Nf3 {[%clk 0:02:38]} 12... a6
{[%clk 0:02:00.1]} 13. b4 {[%clk 0:02:39]} 13... Ba7 {[%clk 0:01:49.3]} 14. Bb2
{[%clk 0:02:40.3]} 14... Be6 {[%clk 0:01:49.6]} 15. Rc1 {[%clk 0:02:38.6]} 15...
Rc8 {[%clk 0:01:45.4]} 16. Bd3 {[%clk 0:02:33.1]} 16... h6 {[%clk 0:01:35.5]}
17. Bb1 {[%clk 0:02:32.6]} 17... Ne7 {[%clk 0:01:20.5]} 18. Nd4 {[%clk
0:02:27.6]} 18... Rxc1 {[%clk 0:00:59.6]} 19. Qxc1 {[%clk 0:02:29.5]} 19... Bxd4
{[%clk 0:00:31.9]} 20. Bxd4 {[%clk 0:02:28.8]} 20... Qd7 {[%clk 0:00:31]} 21.
Qb2 {[%clk 0:02:20.2]} 21... f6 {[%clk 0:00:28.1]} 22. Rd1 {[%clk 0:02:17.2]}
22... Nf5 {[%clk 0:00:25.7]} 23. Bc5 {[%clk 0:02:12.7]} 23... Rd8 {[%clk
0:00:19.7]} 24. e4 {[%clk 0:02:13.6]} 24... Nd6 {[%clk 0:00:16.4]} 25. exd5
{[%clk 0:02:11.2]} 25... Bf5 {[%clk 0:00:14.9]} 26. Ba2 {[%clk 0:02:01]} 26...
Kh8 {[%clk 0:00:12.8]} 27. h3 {[%clk 0:02:00.4]} 27... Be4 {[%clk 0:00:11.9]}
28. Qd4 {[%clk 0:01:54.3]} 28... Bh7 {[%clk 0:00:11.6]} 29. Qf4 {[%clk
0:01:51.3]} 29... Ne4 {[%clk 0:00:07.8]} 30. Bd4 {[%clk 0:01:48.9]} 30... Nd6
{[%clk 0:00:05.6]} 31. Rc1 {[%clk 0:01:43]} 31... Re8 {[%clk 0:00:06]} 32. Bc5
{[%clk 0:01:32.2]} 32... Ne4 {[%clk 0:00:05.8]} 33. d6 {[%clk 0:01:27.2]} 33...
f5 {[%clk 0:00:06.2]} 34. Bd5 {[%clk 0:01:16.1]} 34... Bg8 {[%clk 0:00:06.4]}
35. Bxg8 {[%clk 0:01:10]} 35... Kxg8 {[%clk 0:00:06.9]} 36. f3 {[%clk
0:01:04.5]} 36... Nxc5 {[%clk 0:00:04.4]} 37. bxc5 {[%clk 0:01:06.4]} 37... Qc6
{[%clk 0:00:04.8]} 38. Qxf5 {[%clk 0:01:04.7]} 38... Rc8 {[%clk 0:00:04.3]} 39.
Rd1 {[%clk 0:01:01.8]} 39... Rd8 {[%clk 0:00:03.6]} 40. d7 {[%clk 0:00:57.4]}
40... Kh8 {[%clk 0:00:03.8]} 41. Rd6 {[%clk 0:00:58]} 41... Qc7 {[%clk
0:00:04.2]} 42. Qd5 {[%clk 0:00:51.7]} 42... Qa5 {[%clk 0:00:04.6]} 43. Qe5
{[%clk 0:00:50.5]} 43... Qxa3 {[%clk 0:00:03.6]} 44. Rxh6+ {[%clk 0:00:46.5]}
44... Kg8 {[%clk 0:00:03.6]} 45. Qe6+ {[%clk 0:00:48]} 45... Kf8 {[%clk
0:00:03.6]} 46. Rh8# {[%clk 0:00:49.9]} 1-0